Cogmind - Beta 14 @@@ ROGUE MODE // 2024.10.08 @ 04:39:31 Player: Kiwi Result: Destroyed by G-50 Soldier with Heavy Laser Performance ------------- Evolutions (1) 500 Regions Visited (5) 1000 Robots Destroyed (12) 60 Value Destroyed (432) 432 Prototype IDs (1) 20 Alien Tech Used (0) 0 Bonus (652) 652 TOTAL SCORE: 2664 Bonus ------- Follower Combat Kills 52 Met Imprinter 300 Was Imprinted 300 Cogmind --------- Core Integrity 0/400 Matter 290/300 Energy 100/100 System Corruption 0% Temperature Cool (9) Movement Walking (260) Ox2 Location -6/Proximity Caves Parts ------- > --- POWER (1) -------- (None) > --- PROPULSION (4) --- Aluminum Leg > --- UTILITY (2) ------ Large Storage Unit Weapon Shielding > --- WEAPON (2) ------- (None) > --- INVENTORY (15) --- Ion Engine Light Ion Engine Wheel Improved Heat Sink Small Storage Unit Machine Analyzer EM Pulse Gun Particle Gun Particle Gun Spread Laser Datajack CR-A16's Pointy Stick Peak State ------------ > --- POWER ------------ Light Ion Engine > --- PROPULSION ------- Aluminum Leg Aluminum Leg Aluminum Leg Makeshift Leg > --- UTILITY ---------- Large Storage Unit Core Shielding > --- WEAPON ----------- Particle Gun Beam Cannon > --- INVENTORY -------- Ion Engine Ion Engine Light Ion Engine Aluminum Leg Aluminum Leg Wheel Small Storage Unit Machine Analyzer Weapon Shielding EM Pulse Gun Particle Gun Spread Laser Assault Rifle CR-A16's Pointy Stick [Rating: 15] Favorites ----------- Power Light Ion Engine Engine Light Ion Engine Propulsion Aluminum Leg Treads Light Treads Leg Aluminum Leg Utility Large Storage Unit Device Heat Sink Storage Large Storage Unit Protection Core Shielding Weapon Beam Cannon Energy Gun Particle Gun Energy Cannon Beam Cannon Ballistic Gun Assault Rifle Special Melee Weapon Datajack Build | -11 -10 -9 -9 -7 -6 ------- Run | Yrd Mat Mat Min Zio Pro Slots Evolved 2 | . . 2 . . . Power . | . . . . . . Propulsion 2 | . . 2 . . . Utility . | . . . . . . Weapon . | . . . . . . Parts Attached 25 | 7 2 4 3 3 6 Power 2 | 1 . . . . 1 Engine 2 | 1 . . . . 1 Core . | . . . . . . Reactor . | . . . . . . Propulsion 11 | 3 . 2 2 2 2 Treads 1 | 1 . . . . . Leg 10 | 2 . 2 2 2 2 Wheel . | . . . . . . Hover . | . . . . . . Flight . | . . . . . . Utility 5 | 1 2 . 1 . 1 Device 1 | . 1 . . . . Storage 2 | 1 1 . . . . Processor . | . . . . . . Hackware . | . . . . . . Protection 2 | . . . 1 . 1 Artifact . | . . . . . . Weapon 7 | 2 . 2 . 1 2 Energy Gun 1 | . . . . . 1 Energy Cannon 1 | . . 1 . . . Ballistic Gun 4 | 2 . 1 . . 1 Ballistic Cannon . | . . . . . . Launcher . | . . . . . . Special Weapon . | . . . . . . Impact Weapon . | . . . . . . Slashing Weapon . | . . . . . . Piercing Weapon . | . . . . . . Special Melee Weapon 1 | . . . . 1 . Unidentified Prototypes . | . . . . . . Parts Lost 10 | . . . . . 10 Power 2 | . . . . . 2 Propulsion 5 | . . . . . 5 Utility 1 | . . . . . 1 Weapon 2 | . . . . . 2 Highest Loss Streak 3 | . . . . . 3 To Critical Strikes . | . . . . . . Average Slot Usage (%) 94 | . 91 99 100 100 82 Engine 11 | . 14 11 11 11 10 Leg 38 | . 28 43 44 44 29 Device 1 | . 6 11 2 . . Storage 11 | . 14 11 11 11 11 Protection 8 | . . . 8 11 9 Energy Gun 2 | . . . . . 10 Energy Cannon 7 | . . 7 11 11 3 Ballistic Gun 7 | . 28 14 11 1 7 Special Melee Weapon 4 | . . . . 9 . Peak Build Rating 15 | 6 8 11 12 14 15 Average Rating 10 | 3 6 10 11 11 12 On Entrance 8 | . 6 8 11 12 14 Naked Turns . | . . . . . . Heaviest Build 31 | 11 27 30 30 30 31 Greatest Support 50 | 20 20 40 40 50 50 Greatest Overweight (x) 2 | 1 1 . . . 2 Average Overweight (x) . | . . . . . . Largest Inventory Capacity 15 | 8 15 15 15 15 15 Average Capacity 14 | 7 12 15 15 15 15 Most Carried 15 | 8 14 15 15 15 15 Average Carried 13 | 4 9 13 14 14 12 Final Capacity 15 | 8 15 15 15 15 15 Final Carried 15 | 5 14 15 15 15 12 Class Distribution -------------------- 74% | Scavenger-Mutant 25% | Mutant Dominant Class ---------------- Mutant | -10/Materials Mutant | -9/Materials Scavenger-Mutant | -9/Mines Scavenger-Mutant | -7/Zion Scavenger-Mutant | -6/Proximity Caves Resources | -11 -10 -9 -9 -7 -6 ----------- Run | Yrd Mat Mat Min Zio Pro Matter Collected 539 | 122 35 105 211 30 36 Remotely . | . . . . . . Salvage Created 528 | . 74 105 237 . 112 Parts 29 | . 7 4 13 . 5 Haulers Intercepted . | . . . . . . Recyclers Shooed 1 | . . . 1 . . Parts Field Recycled . | . . . . . . Retrieved Matter . | . . . . . . Parts Self-Destructed 4 | . . . . . 4 Prevented . | . . . . . . Kills | -11 -10 -9 -9 -7 -6 ------- Run | Yrd Mat Mat Min Zio Pro Combat Hostiles Destroyed 11 | . 2 2 4 . 3 Guns 9 | . 2 2 3 . 2 Cannons 2 | . . . 1 . 1 Classes Destroyed 5 | . 1 . 2 . 2 Mechanic 1 | . . . 1 . . Swarmer 2 | . . . . . 2 Grunt 7 | . 2 2 3 . . Duelist 1 | . . . 1 . . Sentry 1 | . . . . . 1 Best Kill Streak 3 | . 1 1 3 . 2 Combat Bots Only 2 | . 1 1 2 . 2 Max Kills in Single Turn 1 | . 1 1 1 . 1 Gunslinging . | . . . . . . Exploded . | . . . . . . Melee . | . . . . . . Uniques/NPCs Destroyed . | . . . . . . Combat | -11 -10 -9 -9 -7 -6 -------- Run | Yrd Mat Mat Min Zio Pro Hostile Shots Fired 245 | . 7 32 21 . 185 Missed 97 | . 2 11 7 . 77 Damage Taken 1637 | . 56 256 226 . 1099 Core 412 | . 12 61 45 . 294 Absorbed by Shields . | . . . . . . Redirected to Shielding 41 | . . . 10 . 31 Regen/Repaired (Parts) 73 | . . . . 73 . Core Remaining (%) 97 | 100 95 . . . . Volleys Fired 48 | . 7 14 16 . 11 Largest 2 | . 2 2 2 . 2 Hottest 125 | . 40 83 83 . 125 Shots Fired 95 | . 14 28 32 . 21 Gun 57 | . 14 14 16 . 13 Cannon 38 | . . 14 16 . 8 Launcher . | . . . . . . Special . | . . . . . . Kinetic 46 | . 14 14 16 . 2 Thermal 49 | . . 14 16 . 19 Explosive . | . . . . . . Electromagnetic . | . . . . . . Robot Hit Streak 15 | . 3 6 15 . 5 Robot Miss Streak 4 | . 3 2 4 . 2 Penetration Max . | . . . . . . Secondary Targets . | . . . . . . Shots Hit Robots 67 | . 6 20 23 5 13 Core Hits 19 | . 3 4 7 . 5 Critical Kills . | . . . . . . Critical Parts Destroyed . | . . . . . . Critical Strikes . | . . . . . . Melee Attacks 5 | . . . . 5 . Impact . | . . . . . . Slashing . | . . . . . . Piercing . | . . . . . . Sneak Attacks 5 | . . . . 5 . Combat Hostiles . | . . . . . . Follow-up Attacks . | . . . . . . Damage Inflicted 1021 | . 71 334 406 . 210 Guns 516 | . 71 158 181 . 106 Cannons 505 | . . 176 225 . 104 Explosions . | . . . . . . Melee . | . . . . . . Ramming . | . . . . . . Kinetic 423 | . 71 158 181 . 13 Thermal 598 | . . 176 225 . 197 Explosive . | . . . . . . Electromagnetic . | . . . . . . Impact . | . . . . . . Slashing . | . . . . . . Piercing . | . . . . . . Highest Corruption . | . . . . . . Average Corruption . | . . . . . . Corruption Purged . | . . . . . . Corruption Blocked . | . . . . . . Overload Shots . | . . . . . . Overflow Damage 5 | . . 5 . . . Projectiles 5 | . . 5 . . . Explosions . | . . . . . . Melee . | . . . . . . Knockbacks . | . . . . . . Impact . | . . . . . . Kinetic . | . . . . . . Secondary . | . . . . . . Self-Inflicted Damage . | . . . . . . Shots . | . . . . . . Rammed . | . . . . . . Targets Rammed . | . . . . . . Kicked . | . . . . . . Crushed . | . . . . . . Highest Temperature 324 | . 6 66 229 . 324 Average Temperature 96 | . 6 32 76 . 161 Received Heat Transfer 498 | . 30 144 87 . 237 Effects 1 | . . . . . 1 Damage (minor) 1 | . . . . . 1 Siege Activations . | . . . . . . Robots Corrupted . | . . . . . . Combat Hostiles . | . . . . . . Parts Fried . | . . . . . . Impact Corruptions . | . . . . . . Robots Melted . | . . . . . . Combat Hostiles . | . . . . . . Parts Melted 1 | . . . 1 . . Heat Transferred 1295 | . . 370 481 . 444 Parts Sabotaged . | . . . . . . Parts Stolen . | . . . . . . Parts Stripped . | . . . . . . Power Chain Reactions . | . . . . . . Alert | -11 -10 -9 -9 -7 -6 ------- Run | Yrd Mat Mat Min Zio Pro Peak Influence 213 | . 117 125 213 . . Initial 48 | . . . 48 . . Average 69 | . 58 31 114 . . Maximum Alert Level 1 | . . . 1 . . Low Security (%) 95 | 100 100 100 87 . . Level 1 4 | . . . 12 . . Level 2 . | . . . . . . Level 3 . | . . . . . . Level 4 . | . . . . . . Level 5 . | . . . . . . High Security . | . . . . . . Max Security . | . . . . . . Squads Dispatched 3 | . 2 . 1 . . Investigation 1 | . 1 . . . . Extermination . | . . . . . . Reinforcement 1 | . 1 . . . . Assault 1 | . . . 1 . . Garrison . | . . . . . . Intercept . | . . . . . . Searches Triggered . | . . . . . . Construction Impeded . | . . . . . . Haulers Reinforced . | . . . . . . Active Scanning Responses . | . . . . . . Cargo Convoy Interrupts . | . . . . . . Stealth | -11 -10 -9 -9 -7 -6 --------- Run | Yrd Mat Mat Min Zio Pro Distress Signals . | . . . . . . Communications Jammed . | . . . . . . Distress Signals . | . . . . . . Times Spotted 30 | . 7 4 8 . 11 Peak Tracking Total 4 | . 2 4 4 . 3 Tactical Retreats 9 | . . 2 1 . 6 Traps | -11 -10 -9 -9 -7 -6 ------- Run | Yrd Mat Mat Min Zio Pro Traps Triggered . | . . . . . . Indirectly . | . . . . . . Trap Hack Attempts . | . . . . . . Triggered . | . . . . . . Disarmed . | . . . . . . Reprogrammed . | . . . . . . Reused . | . . . . . . Traps Extracted . | . . . . . . Installed . | . . . . . . Triggered 2 | . . . . . 2 Machines | -11 -10 -9 -9 -7 -6 ---------- Run | Yrd Mat Mat Min Zio Pro Machines Disabled . | . . . . . . Max in Single Turn . | . . . . . . Machines Repaired . | . . . . . . Machines Dismantled . | . . . . . . Machines Sabotaged . | . . . . . . Overloaded Fab Kills . | . . . . . . Hacking | -11 -10 -9 -9 -7 -6 --------- Run | Yrd Mat Mat Min Zio Pro Machines Accessed 4 | . 3 . . 1 . Terminals 2 | . 2 . . . . Fabricators . | . . . . . . Repair Stations . | . . . . . . Recycling Units 1 | . 1 . . . . Scanalyzers . | . . . . . . Garrison Access . | . . . . . . Total Hacks 11 | . 8 . . 3 . Successful 10 | . 7 . . 3 . Failed 1 | . 1 . . . . Catastrophic 1 | . 1 . . . . Database Lockouts . | . . . . . . Manual 6 | . . . . 6 . Terminals 3 | . 3 . . . . Fabricators . | . . . . . . Repair Stations . | . . . . . . Recycling Units 5 | . 5 . . . . Scanalyzers . | . . . . . . Garrison Access . | . . . . . . Terminal Hacks 5 | . 2 . . 3 . Record 1 | . 1 . . . . Part Schematic 3 | . . . . 3 . Zone Layout 1 | . 1 . . . . Fabricator Hacks . | . . . . . . Repair Station Hacks . | . . . . . . Recycling Unit Hacks 5 | . 5 . . . . Recycle Component 1 | . 1 . . . . Process 1 | . 1 . . . . Report Inventory 1 | . 1 . . . . Retrieve Matter 1 | . 1 . . . . Retrieve Components 1 | . 1 . . . . Scanalyzer . | . . . . . . Garrison Access Hacks . | . . . . . . Unauthorized Hacks . | . . . . . . Terminals . | . . . . . . Fabricators . | . . . . . . Repair Stations . | . . . . . . Recycling Units . | . . . . . . Scanalyzers . | . . . . . . Garrison Access . | . . . . . . Data Cores Recovered . | . . . . . . Used . | . . . . . . Hacking Detections 1 | . 1 . . . . Full Trace Events 1 | . 1 . . . . Feedback Events . | . . . . . . Feedback Blocked . | . . . . . . Robot Schematics Acquired 3 | . . . . 3 . Robots Built . | . . . . . . Authchips . | . . . . . . Time . | . . . . . . Total Robot Build Rating . | . . . . . . Part Schematics Acquired 18 | . . . . 18 . Parts Built . | . . . . . . Authchips . | . . . . . . Time . | . . . . . . Total Part Build Rating . | . . . . . . Parts Repaired . | . . . . . . Time . | . . . . . . Parts Recycled 1 | . 1 . . . . Recycled Matter 35 | . 35 . . . . Retrieved Matter 35 | . 35 . . . . Retrieved Components 3 | . 3 . . . . Parts Scanalyzed . | . . . . . . Part Schematics Acquired . | . . . . . . Parts Damaged . | . . . . . . Bothacking | -11 -10 -9 -9 -7 -6 ------------ Run | Yrd Mat Mat Min Zio Pro Used RIF Installer . | . . . . . . Robots Hacked 4 | . . . . 4 . Non-combat . | . . . . . . Combat 4 | . . . . 4 . Robot Hacks Applied 4 | . . . . 4 . parse_system 4 | . . . . 4 . Relay Couplers Released . | . . . . . . Fabnet Peak Effective % . | . . . . . . Robots Rewired . | . . . . . . Allies Hacked . | . . . . . . Hacks Repelled . | . . . . . . Allies | -11 -10 -9 -9 -7 -6 -------- Run | Yrd Mat Mat Min Zio Pro Total Allies 5 | . . . 1 4 . Largest Group 5 | . . . 1 5 1 Highest-Rated Group 185 | . . . 31 185 31 Highest-Rated Ally 40 | . . . 31 40 31 Total Orders . | . . . . . . Ally Attacks 14 | . . . 12 . 2 Total Damage 255 | . . . 212 . 43 Kills 2 | . . . 2 . . Allies Corrupted . | . . . . . . Allies Melted . | . . . . . . Intel | -11 -10 -9 -9 -7 -6 ------- Run | Yrd Mat Mat Min Zio Pro Robot Analysis Total . | . . . . . . Derelict Logs Recovered 1 | . . . . . 1 Drone Launches . | . . . . . . Drone Recoveries . | . . . . . . Exploration | -11 -10 -9 -9 -7 -6 ------------- Run | Yrd Mat Mat Min Zio Pro Turns Passed 3963 | 59 469 192 363 1882 998 Spaces Moved 2661 | 49 232 113 258 1378 631 Core 29 | 29 . . . . . Treads . | . . . . . . Legs 2632 | 20 232 113 258 1378 631 Wheels . | . . . . . . Hover . | . . . . . . Flight . | . . . . . . Fastest Speed 50 | 50 120 120 120 120 125 Average Speed 131 | 85 166 120 120 121 151 Slowest Speed 260 | 120 190 120 120 126 260 Overloaded Moves . | . . . . . . Propulsion Burnouts . | . . . . . . Robots Hopped . | . . . . . . Cave-ins Triggered . | . . . . . . Exploration Rate (%) 45 | 4 44 9 72 90 56 Regions Visited 5 Branch Regions 3 Pre-discovered Areas . | . . . . . . Known Exits Taken . | . . . . . . Unknown Exits Taken 5 | 1 1 1 1 1 . Scrap Searched 7 | . . . 1 4 2 Spaces Dug . | . . . . . . Terrain Destroyed . | . . . . . . Melee . | . . . . . . Projectile . | . . . . . . AOE . | . . . . . . Terrain Rammed . | . . . . . . Walls Destroyed . | . . . . . . Machines Disabled . | . . . . . . Actions | -11 -10 -9 -9 -7 -6 --------- Run | Yrd Mat Mat Min Zio Pro Total 3033 | 64 303 145 283 1582 656 Wait 251 | . 51 7 . 193 . Move 2656 | 48 231 112 257 1377 631 Hop . | . . . . . . Pick Up 31 | 8 11 5 2 1 4 Fast Attach 8 | 4 . . 3 1 . Attach 16 | 3 2 4 . 1 6 Detach 3 | . 1 1 . . 1 Swap 1 | . . . . 1 . Drop 14 | 1 . 2 5 3 3 Fire 48 | . 7 14 16 . 11 Melee 5 | . . . . 5 . Ram . | . . . . . . Kick . | . . . . . . Crush . | . . . . . . Escape Stasis . | . . . . . . Rewire . | . . . . . . Trap . | . . . . . . Miscellaneous . | . . . . . . Route ------- -11/Scrapyard -10/Materials -9/Materials -9/Mines (discovered 2 exits: [*Mat] / *Zio) -7/Zion -6/Proximity Caves History --------- Turn | Location | Event 10 | -11/Scrapyard | Discovered new exit (range 16) 60 | -11/Scrapyard | Entered Materials 314 | -10/Materials | Build established: Mutant 464 | -10/Materials | Discovered new exit (range 14) 529 | -10/Materials | Entered another Materials area 529 | -9/Materials | Evolved 2 slots: Propulsion x2 704 | -9/Materials | Discovered new exit (range 4) 721 | -9/Materials | Entered Mines 735 | -9/Mines | Met a Derelict bent on vengeance 777 | -9/Mines | Discovered new exit (range 6) 954 | -9/Mines | Met a Derelict testing a Signal Generator 1074 | -9/Mines | A Derelict revealed a hidden shortcut to a safe place 1084 | -9/Mines | Entered Zion 1084 | -7/Zion | Accompanied by 1 ally 1122 | -7/Zion | Build established: Scavenger-Mutant 1233 | -7/Zion | Discovered new exit (range 16) 1519 | -7/Zion | Received a visual enhancement algorithm 1609 | -7/Zion | Met Imprinter 1644 | -7/Zion | Imprinted 1646 | -7/Zion | Declared Zion's savior 2213 | -7/Zion | Found CR-A16's Pointy Stick 2966 | -7/Zion | Entered Proximity Caves 2966 | -6/Proximity Caves | Accompanied by 1 ally 3052 | -6/Proximity Caves | Spotted B-75 Beast 3270 | -6/Proximity Caves | Attracted the attention of an 0b10 checkpoint 3542 | -6/Proximity Caves | Lost 3 parts (1p2n) 3788 | -6/Proximity Caves | Core integrity fell below 50% 3956 | -6/Proximity Caves | Core integrity fell below 20% 3964 | -6/Proximity Caves | Destroyed by G-50 Soldier with Heavy Laser Last Messages --------------- 03315_ Lgt. Treads fries itself beyond repair. 03317_ Flak Gun fries itself beyond repair. 03318_ Acquired Imp. Heat Sink. 03319_ Acquired 16 matter. 03322_ Imp. Deuterium Engine fries itself beyond repair. 03475_ Acquired Datajack. 03500_ Mak. Leg destroyed. 03508_ Aluminum Leg destroyed. 03511_ Lgt. Ion Engine destroyed. 03815_ Core Shielding destroyed. 03946_ Assault Rifle destroyed. 03946_ G-50 Soldier misfires. 03949_ Dropped Weapon Shielding. 03950_ Dropped Wheel. 03952_ Aluminum Leg destroyed. 03955_ Acquired Weapon Shielding. 03959_ Acquired Wheel. 03961_ G-50 Soldier misfires. 03963_ Ion Engine destroyed. Map ----- +----------------------------------------------------+ | ?????????????????????????????????????????????????? | | ?????????????????????????????????????????????????? | | ?????????????????????????????????????????????????? | | ?????????????????????????????????????????????????? | | ?????????????????????????????????????????????????? | | ?????????????????????????????????????????????????? | | ?????????????????????????????????????????????????? | | ?????????????????????????????????????????????????? | | ?????????????????????????????????????????????????? | | ?????????????????????????????????????????????????? | | ?????????????????????????????????????????????????? | | ?????????????????????##??????????????????????????? | | ??????????????????#### ?????????????????????????? | | ???????????????? ?????????????????????????? | | ??????????????? ?????????????????????????? | | ???????????????? ?????????????????????????? | | ????????????? ??# ?????????????????????????? | | ????????????? ## #####????????????????????? | | ?????????????# ##???????????????????? | | ??????????????# ##??????????????????? | | ???????????????# ???????????????????? | | ???????????????# #???????????????????? | | ????????????????# #???????????????????? | | ????????????#????# #???????????????????? | | ???????????## ????# #???????????????????? | | ????????? ## ???# @ ##??????????????????? | | ????????? #### ##?????????????????? | | ????????? g ##????????????????? | | ????????? g #????????????????? | | ?????????? ### ##????????????????? | | ???????????# ??# #?????????????????? | | ???????????# ??# ##?????????????????? | | ???????????# ??## ##??????????????????? | | ???????????# #??## # #???????????????????? | | ??????????## #??# # #???????????????????? | | ??????????# #?## ## ##???????????????????? | | ?????????## #?# ########????????????????????? | | ???????### ### #???????????????????????????? | | ????#### ##??????????????????????????? | | ????# ###????????????????????????? | | ????# ### ????????????????????? | | ????# #??????????????????? | | #???## ##???????????????????? | | ##???# ## #####???##???????????????? | | #???## ## #???#### #???????????????? | | #????# ## ### #???# #???????????????? | | #????# ## ### ##### #???????????????? | | ##???# ### ## ##% ##???????????????? | | """## ### ##???????????????? | | % ##??????????????? | +----------------------------------------------------+ Best States ------------- Heat Dissipation 38 Energy Generation 10 Energy Capacity 250 Matter Stores 300 Matter Capacity 300 Sight Range 16 Terrain Scan Density 10 Core Shielding 20 Weapon Shielding 33 Evasion (%) 55 Item Schematics ----------------- Imp. Core Shielding | -7/Zion | Archive Lightning Gun | -7/Zion | Archive Imp. Medium Armor Plating | -7/Zion | Archive Gatling Laser | -7/Zion | Archive Hvy. Pick | -7/Zion | Archive Imp. Carbon-fiber Leg | -7/Zion | Archive Drone Bay | -7/Zion | Archive Kinecellerator | -7/Zion | Archive Proton Cannon | -7/Zion | Archive Adv. System Restoration Module | -7/Zion | Archive Arm. Medium Treads | -7/Zion | Archive Arc Projector | -7/Zion | Archive Thermal Shield | -7/Zion | Archive Hvy. Flak Cannon | -7/Zion | Archive Remote Datajack | -7/Zion | Archive Hvy. Riot Gun | -7/Zion | Free Arc Thrower | -7/Zion | Free Riot Gun | -7/Zion | Free Robot Schematics ------------------ T-07 Excavator | -7/Zion | Archive L-41 Fighter | -7/Zion | Archive B-48 Gladiator | -7/Zion | Archive Fabricated ------------ Nothing Alien Tech Used ----------------- None Achievements -------------- Robot Respite The More The Merrier The One Tourist Challenges ------------ None Game ------ Seed StealthComponentStick Manual? 0 Play Time 00:40:03 Cumulative 5.2 hours Start 2024.10.08 @ 03:52:03 End 2024.10.08 @ 04:39:31 Sessions 2 Manual Loads 0 Difficulty Rogue Special Mode None Game No. 9 Rogue 9 Adventurer 0 Explorer 0 Win Type - Total 0 Types 0/0/0/0/0/0/0/0/0 Lore% 3 Gallery% 9 Achievement% 7 Wizard Run 0 Options --------- Layout 1 ASCII 0 Keyboard 0 Movement Mouse Keybinds 0 Fullscreen 1 Font 24/Smallcaps Map View 50x35 Zoom Use 0% Tactical HUD 1 Map Filters NONE Filters NONE Steam 1 RUN: f62ef6d5-f21a-43df-9eb5-104fc3883f22